Cogmind - Beta 10.1 @@@ ROGUE MODE // 2020.09.22 @ 11:28:30 Player: sentrybuster Result: Destroyed by Y-45 Defender with Heavy Assault Rifle Performance ------------- Evolutions (1) 500 Regions Visited (3) 600 Robots Destroyed (32) 160 Value Destroyed (574) 574 Prototype IDs (3) 60 Alien Tech Used (0) 0 Bonus (-17) -17 TOTAL SCORE: 1877 Bonus ------- Friendly Fire -17 Cogmind --------- Core Integrity 0/400 Matter 260/300 Energy 79/100 System Corruption 0% Temperature Cool (9) Movement Treading (160) Location -9/Materials Parts ------- > --- POWER (1) -------- (None) > --- PROPULSION (3) --- Light Treads > --- UTILITY (3) ------ Large Storage Unit Improved Terrain Scanner Seismic Analyzer > --- WEAPON (2) ------- Heavy Assault Rifle > --- INVENTORY (10) --- Light Ion Engine Heat Sink Cooling System Improved Sensor Array Improved Signal Interpreter ECM Suite Advanced Beam Cannon Light Assault Rifle Peak State ------------ > --- POWER ------------ Cooled Ion Engine > --- PROPULSION ------- Light Treads Light Treads Light Treads > --- UTILITY ---------- Large Storage Unit Improved Terrain Scanner Seismic Analyzer > --- WEAPON ----------- Advanced Beam Cannon Heavy Assault Rifle > --- INVENTORY -------- Light Ion Engine Cooling System Improved Sensor Array Signal Interpreter Improved Terrain Scanner ECM Suite Beam Rifle Particle Gun Light Assault Rifle Hammer [Rating: 16] Favorites ----------- Power Light Ion Engine Engine Light Ion Engine Power Core Light Nuclear Core Propulsion Compact Wheel Treads Light Treads Leg Aluminum Leg Wheel Compact Wheel Utility Large Storage Unit Device Improved Terrain Scanner Storage Large Storage Unit Processor Seismic Analyzer Protection Hardened Light Armor Plating Weapon Heavy Assault Rifle Energy Gun Small Laser Energy Cannon Advanced Beam Cannon Ballistic Gun Heavy Assault Rifle Impact Weapon Hammer Build | -11 -10 -10 -9 ------- Run | Scr Mat Min Mat Slots Evolved 2 | . . . 2 Power . | . . . . Propulsion 1 | . . . 1 Utility 1 | . . . 1 Weapon . | . . . . Parts Attached 34 | 7 3 3 21 Power 3 | 1 . 1 1 Engine 2 | 1 . . 1 Core 1 | . . 1 . Reactor . | . . . . Propulsion 8 | 2 . 1 5 Treads 4 | . . . 4 Leg 1 | . . . 1 Wheel 3 | 2 . 1 . Hover . | . . . . Flight . | . . . . Utility 8 | 1 3 . 4 Device 3 | . . . 3 Storage 3 | 1 2 . . Processor 1 | . . . 1 Hackware . | . . . . Protection 1 | . 1 . . Artifact . | . . . . Weapon 15 | 3 . 1 11 Energy Gun 3 | 1 . . 2 Energy Cannon 1 | . . . 1 Ballistic Gun 9 | 2 . 1 6 Ballistic Cannon . | . . . . Launcher . | . . . . Special Weapon . | . . . . Impact Weapon 2 | . . . 2 Slashing Weapon . | . . . . Piercing Weapon . | . . . . Special Melee Weapon . | . . . . Unidentified Prototypes 1 | . . . 1 Parts Lost 15 | . . 5 10 Power 2 | . . 1 1 Propulsion 6 | . . 2 4 Utility 2 | . . 1 1 Weapon 5 | . . 1 4 Highest Loss Streak 5 | . . 1 5 Average Slot Usage (%) 86 | . 94 90 82 Engine 9 | . 14 11 6 Core 2 | . . 2 3 Treads 8 | . . . 15 Leg 1 | . . . 2 Wheel 13 | . 28 26 . Device 5 | . . . 9 Storage 12 | . 15 14 11 Processor 5 | . . . 11 Protection 3 | . 7 7 . Energy Gun 3 | . 14 3 1 Energy Cannon 1 | . . . 1 Ballistic Gun 17 | . 14 24 13 Impact Weapon 2 | . . . 4 Naked Turns . | . . . . Heaviest Build 32 | 10 27 27 32 Greatest Support 60 | 32 32 32 60 Greatest Overweight (x) 9 | . . 1 9 Average Overweight (x) . | . . . 1 Largest Inventory Capacity 12 | 6 12 10 10 Average Capacity 9 | 4 9 10 10 Most Carried 10 | 4 6 8 10 Average Carried 7 | 2 4 7 8 Final Capacity 10 | 6 10 10 10 Final Carried 8 | 4 5 8 8 Class Distribution -------------------- 92% | Mutant 7% | Scavenger-Mutant Dominant Class ---------------- Mutant | -10/Materials Mutant | -10/Mines Mutant | -9/Materials Resources | -11 -10 -10 -9 ----------- Run | Scr Mat Min Mat Matter Collected 750 | 227 . 227 296 Remotely . | . . . . Salvage Created 877 | . 50 227 600 Parts 66 | . 6 22 38 Haulers Intercepted 1 | . . . 1 Recyclers Shooed 2 | . . . 2 Parts Field Recycled . | . . . . Retrieved Matter . | . . . . Parts Self-Destructed . | . . . . Prevented . | . . . . Kills | -11 -10 -10 -9 ------- Run | Scr Mat Min Mat Combat Hostiles Destroyed 26 | . 2 10 14 Melee 2 | . . . 2 Guns 22 | . 2 10 10 Cannons 2 | . . . 2 Classes Destroyed 7 | . 2 1 4 Worker 2 | . . . 2 Hauler 1 | . . . 1 Recycler 1 | . . . 1 Watcher 2 | . 1 . 1 Swarmer 17 | . 2 8 7 Grunt 6 | . . 2 4 Sentry 3 | . . . 3 Best Kill Streak 4 | . 3 3 4 Combat Bots Only 4 | . 2 3 4 Max Kills in Single Turn 1 | . 1 1 1 Gunslinging . | . . . . Exploded . | . . . . Melee 1 | . . . 1 Uniques/NPCs Destroyed . | . . . . Combat | -11 -10 -10 -9 -------- Run | Scr Mat Min Mat Damage Taken 2220 | . 29 542 1649 Core 503 | . 6 92 405 Absorbed by Shields . | . . . . Core Remaining (%) 80 | 100 . 60 . Volleys Fired 105 | . 8 34 63 Largest 2 | . 2 2 2 Hottest 91 | . 60 60 91 Shots Fired 164 | . 11 66 87 Gun 150 | . 11 66 73 Cannon 14 | . . . 14 Launcher . | . . . . Special . | . . . . Kinetic 121 | . 8 56 57 Thermal 43 | . 3 10 30 Explosive . | . . . . Electromagnetic . | . . . . Robot Hit Streak 10 | . 2 5 10 Robot Miss Streak 3 | . 3 3 3 Penetration Max . | . . . . Secondary Targets 4 | . . 4 . Max Gunslinging Chain 1 | . . 1 . Shots Hit Robots 116 | . 6 36 74 Core Hits 45 | . 3 17 25 Critical Hits 1 | . . . 1 Critical Kills 1 | . . . 1 Critical Parts Destroyed . | . . . . Melee Attacks 22 | . . . 22 Impact 22 | . . . 22 Slashing . | . . . . Piercing . | . . . . Sneak Attacks 1 | . . . 1 Combat Hostiles . | . . . . Follow-up Attacks . | . . . . Damage Inflicted 1671 | . 83 393 1195 Guns 1242 | . 83 392 767 Cannons 162 | . . . 162 Explosions . | . . . . Melee 265 | . . . 265 Ramming 2 | . . 1 1 Kinetic 1029 | . 72 338 619 Thermal 375 | . 11 54 310 Explosive . | . . . . Electromagnetic . | . . . . Impact 265 | . . . 265 Slashing . | . . . . Piercing . | . . . . Highest Corruption . | . . . . Average Corruption . | . . . . Corruption Purged . | . . . . Overload Shots . | . . . . Overflow Damage 67 | . . . 67 Projectiles 19 | . . . 19 Explosions . | . . . . Melee 48 | . . . 48 Knockbacks 2 | . . . 2 Impact 2 | . . . 2 Kinetic . | . . . . Secondary . | . . . . Self-Inflicted Damage . | . . . . Shots . | . . . . Rammed 2 | . . 1 1 Targets Rammed 2 | . . 1 1 Kicked . | . . . . Crushed . | . . . . Highest Temperature 318 | . 15 126 318 Average Temperature 63 | . 9 34 94 Received Heat Transfer 624 | . . 189 435 Siege Activations . | . . . . Robots Corrupted . | . . . . Combat Hostiles . | . . . . Parts Fried . | . . . . Impact Corruptions 2 | . . . 2 Robots Melted . | . . . . Combat Hostiles . | . . . . Parts Melted . | . . . . Heat Transferred 816 | . 25 125 666 Parts Sabotaged . | . . . . Parts Stolen . | . . . . Parts Stripped . | . . . . Power Chain Reactions . | . . . . Missiles Intercepted . | . . . . Alert | -11 -10 -10 -9 ------- Run | Scr Mat Min Mat Peak Influence 213 | . 67 135 213 Initial 37 | . . 25 37 Average 87 | . 18 57 125 Maximum Alert Level 1 | . . . 1 Low Security (%) 93 | 100 100 100 88 Level 1 6 | . . . 11 Level 2 . | . . . . Level 3 . | . . . . Level 4 . | . . . . Level 5 . | . . . . High Security . | . . . . Max Security . | . . . . Squads Dispatched 4 | . 1 . 3 Investigation 1 | . . . 1 Extermination . | . . . . Reinforcement 3 | . 1 . 2 Assault . | . . . . Garrison . | . . . . Intercept . | . . . . Construction Impeded . | . . . . Haulers Reinforced . | . . . . Stealth | -11 -10 -10 -9 --------- Run | Scr Mat Min Mat Distress Signals 5 | . 2 . 3 Communications Jammed . | . . . . Distress Signals . | . . . . Times Spotted 50 | . 8 13 29 Peak Tracking Total 7 | . 4 3 7 Tactical Retreats 4 | . 1 1 2 Traps | -11 -10 -10 -9 ------- Run | Scr Mat Min Mat Traps Triggered 1 | . . . 1 Indirectly . | . . . . Trap Hack Attempts . | . . . . Triggered . | . . . . Disarmed . | . . . . Reprogrammed . | . . . . Reused . | . . . . Traps Extracted . | . . . . Installed . | . . . . Triggered . | . . . . Machines | -11 -10 -10 -9 ---------- Run | Scr Mat Min Mat Machines Disabled 1 | . . . 1 Max in Single Turn 1 | . . . 1 Machines Sabotaged . | . . . . Garrisons Compromised . | . . . . Overloaded Fab Kills . | . . . . Fab Network Shutdowns . | . . . . Hacking | -11 -10 -10 -9 --------- Run | Scr Mat Min Mat Machines Accessed 8 | . 2 1 5 Terminals 7 | . 2 1 4 Fabricators . | . . . . Repair Stations . | . . . . Recycling Units 1 | . . . 1 Scanalyzers . | . . . . Garrison Access . | . . . . Total Hacks 24 | . 7 5 12 Successful 15 | . 6 3 6 Failed 9 | . 1 2 6 Catastrophic 1 | . . . 1 Database Lockouts . | . . . . Manual 23 | . 7 5 11 Terminals 23 | . 7 5 11 Fabricators . | . . . . Repair Stations . | . . . . Recycling Units 1 | . . . 1 Scanalyzers . | . . . . Garrison Access . | . . . . Terminal Hacks 5 | . 2 2 1 Prototype ID Bank 1 | . 1 . . Level Access Points 1 | . . 1 . Alert Level 1 | . . . 1 Hauler Manifests 1 | . 1 . . Zone Layout 1 | . . 1 . Fabricator Hacks . | . . . . Repair Station Hacks . | . . . . Recycling Unit Hacks 1 | . . . 1 Report Inventory 1 | . . . 1 Scanalyzer . | . . . . Garrison Access Hacks . | . . . . Unauthorized Hacks 9 | . 4 1 4 Terminals 9 | . 4 1 4 Track 4 | . 2 1 1 Assimilate 1 | . . . 1 Botnet 4 | . 2 . 2 Fabricators . | . . . . Repair Stations . | . . . . Recycling Units . | . . . . Scanalyzers . | . . . . Garrison Access . | . . . . Data Cores Recovered . | . . . . Used . | . . . . Hacking Detections 5 | . 1 1 3 Full Trace Events 1 | . . . 1 Feedback Events . | . . . . Feedback Blocked . | . . . . Robot Schematics Acquired . | . . . . Robots Built . | . . . . Matter . | . . . . Time . | . . . . Total Robot Build Rating . | . . . . Part Schematics Acquired . | . . . . Parts Built . | . . . . Matter . | . . . . Time . | . . . . Total Part Build Rating . | . . . . Parts Repaired . | . . . . Time . | . . . . Parts Recycled . | . . . . Recycled Matter . | . . . . Retrieved Matter . | . . . . Retrieved Components . | . . . . Parts Scanalyzed . | . . . . Part Schematics Acquired . | . . . . Parts Damaged . | . . . . Bothacking | -11 -10 -10 -9 ------------ Run | Scr Mat Min Mat Used RIF Installer . | . . . . Robots Hacked . | . . . . Non-combat . | . . . . Combat . | . . . . Robot Hacks Applied . | . . . . Relay Couplers Released . | . . . . Robots Rewired . | . . . . Allies Hacked . | . . . . Hacks Repelled . | . . . . Allies | -11 -10 -10 -9 -------- Run | Scr Mat Min Mat Total Allies 1 | . . . 1 Largest Group 1 | . . . 1 Highest-Rated Group 10 | . . . 10 Highest-Rated Ally 10 | . . . 10 Total Orders . | . . . . Ally Attacks . | . . . . Total Damage . | . . . . Kills . | . . . . Allies Corrupted . | . . . . Allies Melted . | . . . . Intel | -11 -10 -10 -9 ------- Run | Scr Mat Min Mat Robot Analysis Total . | . . . . Derelict Logs Recovered 1 | . . 1 . Drone Launches . | . . . . Drone Recoveries . | . . . . Exploration | -11 -10 -10 -9 ------------- Run | Scr Mat Min Mat Turns Passed 1815 | 54 176 641 944 Spaces Moved 967 | 41 123 485 318 Core 24 | 1 . . 23 Treads 203 | . . . 203 Legs 62 | . . . 62 Wheels 678 | 40 123 485 30 Hover . | . . . . Flight . | . . . . Fastest Speed 50 | 50 100 90 110 Average Speed 125 | 98 100 95 185 Slowest Speed 500 | 100 100 110 500 Overloaded Moves . | . . . . Propulsion Burnouts . | . . . . Robots Hopped . | . . . . Cave-ins Triggered . | . . . . Exploration Rate (%) 31 | 3 27 69 28 Regions Visited 3 Branch Regions 1 Pre-discovered Areas 1 | . . 1 . Known Exits Taken 1 | . . 1 . Unknown Exits Taken 2 | 1 1 . . Scrap Searched 2 | . . 2 . Spaces Dug 3 | . . . 3 Terrain Destroyed 3 | . . . 3 Melee 3 | . . . 3 Projectile . | . . . . AOE . | . . . . Terrain Rammed . | . . . . Walls Destroyed . | . . . . Machines Disabled . | . . . . Actions | -11 -10 -10 -9 --------- Run | Scr Mat Min Mat Total 1367 | 51 165 601 550 Wait 211 | . 28 75 108 Move 964 | 40 122 484 318 Hop . | . . . . Pick Up 18 | 4 1 4 9 Fast Attach 16 | 6 2 2 6 Attach 8 | . . 1 7 Detach 2 | . 1 . 1 Swap 10 | 1 1 . 8 Drop 9 | . 2 . 7 Fire 105 | . 8 34 63 Melee 22 | . . . 22 Ram 1 | . . 1 . Kick . | . . . . Crush 1 | . . . 1 Escape Stasis . | . . . . Rewire . | . . . . Trap . | . . . . Miscellaneous . | . . . . Route ------- -11/Scrapyard -10/Materials -10/Mines (discovered 2 exits: *Mat x2) -9/Materials History --------- Turn | Location | Event 13 | -11/Scrapyard | Discovered new exit (range 16) 55 | -11/Scrapyard | Entered Materials 209 | -10/Materials | Discovered new exit (range 15) 231 | -10/Materials | Entered Mines 248 | -10/Mines | Met a Derelict bent on vengeance 301 | -10/Mines | Build established: Mutant 784 | -10/Mines | Identified exit to Materials 872 | -10/Mines | Entered Materials 872 | -9/Materials | Evolved 2 slots: Propulsion x1, Utility x1 1410 | -9/Materials | Lost 3 parts (2n1w) 1782 | -9/Materials | Core integrity fell below 50% 1800 | -9/Materials | Core integrity fell below 20% 1816 | -9/Materials | Destroyed by Y-45 Defender with Heavy Assault Rifle Last Messages --------------- Aluminum Leg (73%) Sml. Laser (77%) 01748_ ALERT: Hostiles spotted, dispatching reinforcements to Terminal M012. 01765_ U-05 Engineer builds a Wall. 01766_ Cld. Ion Engine destroyed. 01779_ K-01 Serf cleans the Scanalyzer. 01780_ W-16 Scout sends out distress signal. 01783_ K-01 Serf cleans the Scanalyzer. 01784_ Hvy. Assault Rifle destroyed. 01788_ K-01 Serf cleans the Scanalyzer. 01791_ K-01 Serf collects debris. 01798_ Aluminum Leg destroyed. 01801_ Hammer destroyed. 01803_ K-01 Serf cleans the Scanalyzer. 01805_ Hvy. Assault Rifle destroyed. 01806_ Y-45 Defender destroyed. 01807_ K-01 Serf collects debris. 01811_ Acquired Lgt. Treads. 01814_ K-01 Serf collects debris. Map ----- +----------------------------------------------------+ | | | | | | | | | ?????????????????????????????????????????????????? | | ?????????????????????????????????????????????????? | | ?????????????????????????????????????????????????? | | ?????????????????????????????????????????????????? | | ?????????????????????????????????????????????????? | | ?????????????????????????????????????????????????? | | ????????????????????????? ?"?????????????????????? | | ???????????????????????"" ?"??#??????????????????? | | ??????????????????? ???????"???#?????????????????? | | ???????????????????????? ? ? ???#????????????????? | | ?????????????????? ?? ??????? ??#?#??????????????? | | ??????????????? #? ?#??#?#?????????##????????????? | | ????????????? ??+? ? ?? ?? ?? ????? ??????????? | | ????????????????#? ? ??????? ?????????????? | | ???????????? ? ?#+##+######?#??#???? ??????#?# | | ????????????????## #??????#??????????### | | ???????????"????# !! "" ##?#?#?##? ?????#??## | | ??????????? ?????#!! """#??????#? ??##??#??## | | ???????????#??#??#!! S"###?#?###? ??###?#### | | ??????????##???#?# """#?#####?? ????##!! | | ????????#?##? ? # """#?###??## #####! | | ????????? ? ? ?# @###?##### ###?#! | | ????????? ? ? ? # ! Yk!######### #???#! | | ?????????? ? ??# =!%##?#####? #?###? | | ??????????#? ??? ##############?##? ######?! | | ?????????????? ## ##### ###?##?## | | ?????????"??# ? ## """ ""##### #?####?## | | ???????????#? ## """ Y"##### ######### | | ??????????"?# ## """ ""##?## ######?## % | | ????????"??## ## ##### #?####?## | | ???????? ???# #####+############# #?##?#### | | ?????????? ## ^ ##?###### | | ????????? ?## ^ ###?##### | | ????????????# ]]] % ###?##### | | ??????? ????# ]]] % #??#??### | | ???????????## ]]] ###+######+####?##?#### | | ?????????#??# # # !######### | | ??????????### # # + % | | ??????#???#?# # # ######### | | ???????????## # # !![ ####?##?# | | ??????????#?# # # ![[ #?###???# | | ???????????## # # ![[ ##??##### | | ???????????## ][ ################??###?# | | ????????????# ![ ? ? ? ? ??? ??? ??## | | ??????????? ![ ? ? ? ??? ?? ?### | | ??????????? ??? ? ??? ? ?## | +----------------------------------------------------+ Best States ------------- Heat Dissipation 28 Energy Generation 14 Energy Capacity 280 Matter Stores 300 Matter Capacity 300 Sight Range 16 Terrain Scan Range 16 Terrain Scan Density 60 Armor Coverage 150 Evasion (%) 42 Recoil Reduction 3 Item Schematics ----------------- None Robot Schematics ------------------ None Fabricated ------------ Nothing Alien Tech Used ----------------- None Achievements -------------- None Challenges ------------ None Game ------ Seed GaussInsulationWings Manual? 0 Play Time 00:18:12 Cumulative 55.0 hours Start 2020.09.22 @ 11:14:25 End 2020.09.22 @ 11:28:30 Sessions 1 Manual Loads 0 Difficulty Rogue Special Mode None Game No. 101 Rogue 101 Adventurer 0 Explorer 0 Win Type - Total 0 Types 0/0/0/0/0/0/0/0/0 Lore% 43 Gallery% 53 Achievement% 38 Wizard Run 0 Options --------- ASCII 1 Keyboard 1 Movement Numpad Keybinds 0 Fullscreen 1 Font 18/Terminus Map View 76x50 Tactical HUD 1 Map Filters NONE Filters NONE Steam 1 RUN: 696b23b9-b90e-47e2-b6f8-5b059c7c6380